bitfinex/quotes_SOLUSD_20230904
["timestamp","ask_amount","ask_price","bid_price","bid_amount"]
[1693840546270,90.965,19.348,19.338,58.412]
[1693840546659,8.062,19.348,19.338,58.412]
[1693840548462,90.7745,19.356,19.338,58.412]
[1693840548667,8.062,19.35,19.338,58.412]
[1693840550369,56.829,19.357,19.338,58.412]
[1693840550678,9.32801875,19.356,19.338,58.412]
[1693840550971,9.32801875,19.356,19.338,84.12232937]
[1693840551474,8.059,19.356,19.344,19.384]
[1693840551670,8.059,19.356,19.348,0.806]
[1693840551878,0.52445779,19.355,19.348,0.806]
[1693840552077,8.06,19.353,19.348,0.806]
[1693840552577,82.868,19.356,19.348,0.806]
[1693840552776,8.06,19.353,19.348,0.806]
[1693840552960,8.06,19.353,19.347,0.806]
[1693840555574,8.06,19.354,19.347,0.806]
[1693840555975,8.06,19.355,19.347,6.491]
[1693840556376,8.06,19.355,19.347,0.806]
[1693840556578,0.60381291,19.354,19.347,0.806]
[1693840556881,8.061,19.352,19.347,0.806]
[1693840557081,8.06,19.353,19.347,0.806]
[1693840557383,8.06,19.354,19.347,0.806]
[1693840557571,8.061,19.353,19.347,0.806]
[1693840557773,8.06,19.354,19.347,0.806]
[1693840558972,8.06,19.354,19.346,0.806]
[1693840559677,8.06,19.354,19.346,6.491]
[1693840559879,8.06,19.354,19.346,0.806]
[1693840560481,64.895,19.354,19.346,0.806]
[1693840560684,64.895,19.354,19.342,2.605]
[1693840560884,0.55379444,19.353,19.344,0.806]
[1693840561184,0.55379444,19.353,19.344,6.492]
[1693840561373,1.29710824,19.357,19.344,6.492]
[1693840561574,8.06,19.354,19.344,6.492]
[1693840561774,1.29710824,19.353,19.344,6.492]
[1693840562081,8.06,19.353,19.345,55.0]
[1693840562280,8.06,19.353,19.347,3.411]
[1693840562673,8.06,19.353,19.344,5.686]
[1693840562674,8.06,19.353,19.314,6.77666903]
[1693840562901,0.88446574,19.352,19.341,10.288]
[1693840563099,8.062,19.35,19.342,55.0]
[1693840563271,8.062,19.35,19.344,3.411]
[1693840563587,64.909,19.35,19.342,0.806]
[1693840563977,159.4288,19.35,19.342,0.806]
[1693840564281,159.4288,19.35,19.34,2.605]
[1693840564487,159.4288,19.35,19.341,0.806]
[1693840564798,102.5818,19.35,19.341,0.806]
[1693840564974,102.5818,19.35,19.341,55.806]
[1693840565589,26.04,19.355,19.341,55.806]
[1693840565791,8.061,19.351,19.341,55.806]
[1693840566477,8.061,19.351,19.341,0.806]
[1693840566873,34.112,19.348,19.341,0.806]
[1693840567277,34.112,19.348,19.335,20.0]
[1693840567501,90.965,19.348,19.338,2.606]
[1693840567700,93.6289,19.35,19.34,3.411]
[1693840568194,93.6289,19.35,19.34,58.411]
[1693840568492,8.06,19.354,19.34,58.411]
[1693840570095,8.06,19.354,19.34,3.411]
[1693840570975,0.74217171,19.353,19.34,0.806]
[1693840571289,90.957,19.35,19.34,0.806]
[1693840572098,148.427,19.35,19.331,20.676735]
[1693840572283,115.55267472,19.349,19.333,0.806]
[1693840572481,193.855,19.345,19.333,0.806]
[1693840572793,90.998,19.341,19.333,0.806]
[1693840573190,90.998,19.341,19.327,10.296]
[1693840573695,90.998,19.341,19.331,0.806]
[1693840574286,8.067,19.338,19.331,0.806]
[1693840574478,8.067,19.338,19.331,55.806]
[1693840575378,26.059,19.341,19.331,55.806]
[1693840575576,8.065,19.342,19.331,11.1]
[1693840575777,8.064,19.343,19.336,3.412]
[1693840575993,95.5295,19.348,19.336,58.412]
[1693840576175,102.817,19.355,19.336,58.412]
[1693840576380,8.062,19.35,19.337,20.0]
[1693840576586,1.45568987,19.349,19.34,3.411]
[1693840576787,8.063,19.347,19.34,3.411]
[1693840576991,8.063,19.347,19.34,58.411]
[1693840577191,8.063,19.347,19.34,55.806]
[1693840577905,56.846,19.351,19.341,55.0]
[1693840578080,102.824,19.354,19.343,0.806]
[1693840578277,34.106,19.351,19.343,0.806]
[1693840578588,8.061,19.351,19.343,55.806]
[1693840578786,136.943,19.351,19.34,0.806]
[1693840578985,136.943,19.351,19.336,5.688]
[1693840578986,1.42196961,19.35,19.337,20.0]
[1693840579186,90.972,19.347,19.339,0.806]
[1693840579384,90.972,19.347,19.33,10.294]
[1693840579588,1.15013504,19.346,19.33,10.294]
[1693840579903,8.065,19.342,19.322,116.9354046]
[1693840580203,64.936,19.342,19.325,10.297]
[1693840580396,64.936,19.342,19.326,20.0]
[1693840580699,64.936,19.342,19.328,13.709]
[1693840581595,8.065,19.342,19.328,13.709]
[1693840582103,8.065,19.342,19.329,55.0]
[1693840582400,8.065,19.342,19.332,9.101]
[1693840582591,8.065,19.342,19.333,55.0]
[1693840582791,8.065,19.342,19.335,0.806]
[1693840583301,8.065,19.342,19.335,55.806]
[1693840584501,96.1613,19.349,19.335,66.098]
[1693840584798,8.065,19.343,19.335,55.806]
[1693840586604,64.933,19.343,19.335,55.806]
[1693840587185,167.812,19.343,19.332,0.806]
[1693840587499,91.009,19.339,19.33,0.807]
[1693840587694,34.135,19.335,19.328,0.807]
[1693840587908,2.86983195,19.334,19.321,2.608]
[1693840588200,34.142,19.331,19.317,20.691537]
[1693840588403,96.06953195,19.33,19.318,20.0]
[1693840588701,93.1997,19.33,19.32,6.5]
[1693840589094,101.2697,19.33,19.32,6.5]
[1693840589305,8.07,19.33,19.32,6.5]
[1693840590400,8.07,19.33,19.323,3.415]
[1693840590599,8.069,19.332,19.323,3.415]
[1693840590792,8.07,19.331,19.323,58.415]
[1693840591186,0.49947247,19.33,19.323,55.807]
[1693840591384,102.92,19.336,19.323,55.807]
[1693840591385,8.071,19.328,19.323,55.807]
[1693840592202,8.071,19.328,19.323,55.0]
[1693840592803,8.071,19.328,19.323,55.807]
[1693840593599,8.071,19.328,19.323,0.807]
[1693840593902,8.071,19.328,19.318,22.608]
[1693840594101,8.071,19.328,19.32,0.807]
[1693840594400,20.94674962,19.327,19.31,5.696]
[1693840594704,64.996,19.324,19.311,5.696]
[1693840594900,64.996,19.324,19.314,0.807]
[1693840594901,0.85160091,19.323,19.314,0.807]
[1693840595085,8.074,19.321,19.314,0.807]
[1693840595990,8.073,19.324,19.314,0.807]
[1693840596191,0.64151735,19.323,19.314,0.807]
[1693840596392,8.71451735,19.323,19.314,0.807]
[1693840596896,8.073,19.323,19.314,0.807]
[1693840598307,0.50968689,19.322,19.314,0.807]
[1693840598504,8.074,19.32,19.314,0.807]
[1693840599104,65.009,19.32,19.313,0.807]
[1693840599309,65.009,19.32,19.282,26.64246621]
[1693840599508,1.2027743,19.319,19.307,2.61]
[1693840599712,91.117,19.316,19.309,0.807]
[1693840600016,34.169,19.316,19.309,3.417]
[1693840600506,8.076,19.316,19.309,3.417]
[1693840601114,113.060718,19.326,19.309,58.417]
[1693840601412,8.073,19.324,19.31,25.71032937]
[1693840601615,8.073,19.324,19.314,9.111]
[1693840601813,0.99334286,19.323,19.314,9.111]
[1693840601999,34.16,19.321,19.314,0.807]
[1693840602517,26.084,19.323,19.314,6.502]
[1693840602699,8.89918193,19.322,19.314,6.502]
[1693840603420,8.89918193,19.322,19.314,0.807]
[1693840603623,8.073,19.322,19.314,0.807]
[1693840604121,8.073,19.322,19.314,55.807]
[1693840605310,1.46977507,19.321,19.312,0.807]
[1693840605502,34.164,19.319,19.312,0.807]
[1693840605699,8.074,19.32,19.312,6.502]
[1693840606514,2.51309315,19.319,19.312,6.502]
[1693840606716,10.58809315,19.319,19.312,6.502]
[1693840606918,8.075,19.319,19.312,6.502]
[1693840608908,8.075,19.319,19.312,0.807]
[1693840609112,65.013,19.319,19.312,0.807]
[1693840609515,0.80049397,19.318,19.312,0.807]
[1693840609712,8.076,19.317,19.312,0.807]
[1693840610625,26.086,19.321,19.312,6.502]
[1693840610814,0.56776347,19.32,19.312,6.502]
[1693840611623,8.075,19.319,19.312,6.502]
[1693840612121,0.73249129,19.319,19.312,6.502]
[1693840612421,0.73249129,19.319,19.313,55.0]
[1693840612728,8.075,19.319,19.314,9.111]
[1693840613019,8.075,19.319,19.314,3.416]
[1693840613321,8.075,19.319,19.314,0.807]
[1693840614531,8.075,19.319,19.311,5.695]
[1693840614532,8.075,19.319,19.313,0.807]
[1693840615228,56.925,19.324,19.313,0.807]
[1693840615427,1.86484383,19.323,19.313,0.807]
[1693840615926,8.074,19.32,19.313,0.807]
[1693840616230,0.8438816,19.319,19.306,25.71032937]
[1693840616431,34.169,19.316,19.31,0.807]
[1693840616727,56.943,19.318,19.31,0.807]
[1693840616728,8.075,19.318,19.31,6.503]
[1693840617108,102.98,19.325,19.31,6.503]
[1693840617318,34.159,19.321,19.31,6.503]
[1693840617713,34.159,19.321,19.311,55.0]
[1693840617913,34.159,19.321,19.314,0.807]
[1693840620034,34.159,19.321,19.311,57.609]
[1693840620224,0.5159462,19.32,19.311,57.609]
[1693840620526,8.075,19.318,19.314,0.807]
[1693840621519,34.164,19.318,19.31,0.807]
[1693840621717,0.54336234,19.317,19.31,3.417]
[1693840621926,8.075,19.318,19.31,9.113]
[1693840622716,56.93,19.322,19.31,9.113]
[1693840623032,2.44337231,19.324,19.311,55.0]
[1693840623222,8.074,19.321,19.314,0.807]
[1693840624215,8.073,19.322,19.314,6.502]
[1693840624411,1.60476458,19.332,19.32,9.108]
[1693840624614,94.60516458,19.332,19.32,9.108]
[1693840624835,8.071,19.329,19.32,9.108]
[1693840625325,8.071,19.328,19.32,9.108]
[1693840626116,93.0004,19.336,19.32,9.108]
[1693840626322,8.069,19.333,19.321,55.0]
[1693840626524,2.25495894,19.332,19.324,3.415]
[1693840626824,8.07,19.33,19.324,3.415]
[1693840627331,8.07,19.33,19.324,0.807]
[1693840627529,8.07,19.33,19.319,5.693]
[1693840627830,8.072,19.326,19.319,0.807]
[1693840628230,8.071,19.327,19.319,0.807]
[1693840628730,8.072,19.326,19.319,0.807]
[1693840628928,8.072,19.326,19.316,8.303]
[1693840629128,64.99,19.326,19.305,0.808]
[1693840629333,64.99,19.326,19.293,5.701]
[1693840629334,57.41,19.32,19.293,5.701]
[1693840629529,57.41,19.32,19.3,0.808]
[1693840629530,8.077,19.312,19.3,0.808]
[1693840629732,2.92706536,19.311,19.3,0.808]
[1693840629923,8.079,19.31,19.3,0.808]
[1693840630122,2.92706536,19.309,19.3,0.808]
[1693840630328,8.079,19.308,19.297,0.808]
[1693840630842,0.70969233,19.307,19.297,0.808]
[1693840631132,8.079,19.308,19.297,0.808]
[1693840631328,8.08,19.307,19.294,20.0]
[1693840631528,8.079,19.309,19.299,0.808]
[1693840631830,0.63832403,19.308,19.299,0.808]
[1693840632026,8.71732403,19.308,19.299,0.808]
[1693840632233,8.079,19.31,19.299,0.808]
[1693840632437,1.17965356,19.309,19.299,0.808]
[1693840632619,9.25865356,19.309,19.299,0.808]
[1693840633231,8.078,19.311,19.299,0.808]
[1693840633433,1.35379627,19.31,19.299,0.808]
[1693840633633,107.8446,19.313,19.299,0.808]
[1693840633634,1.35379627,19.312,19.299,0.808]
[1693840633932,9.43179627,19.312,19.299,0.808]
[1693840636337,9.43179627,19.312,19.299,3.419]
[1693840637239,9.43179627,19.312,19.299,0.808]
[1693840637963,66.39079627,19.312,19.299,0.808]
[1693840638535,66.39079627,19.312,19.297,2.611]
[1693840638536,65.037,19.312,19.294,20.0]
[1693840638740,1.07140734,19.311,19.296,0.808]
[1693840638932,34.185,19.307,19.296,3.419]
[1693840639135,34.185,19.307,19.296,0.808]
[1693840639536,8.079,19.309,19.296,6.508]
[1693840639726,8.078,19.31,19.3,3.419]
[1693840639931,8.078,19.311,19.3,58.419]
[1693840640232,0.51354843,19.31,19.3,58.419]
[1693840640539,8.079,19.309,19.3,58.419]
[1693840641043,8.079,19.309,19.3,55.808]
[1693840641932,8.078,19.31,19.3,55.808]
[1693840643848,8.079,19.309,19.3,55.808]
[1693840644227,1.30654764,19.312,19.3,55.808]
[1693840644637,8.077,19.312,19.3,55.808]
[1693840645434,1.29919211,19.311,19.3,0.808]
[1693840645746,8.079,19.308,19.3,0.808]
[1693840646043,8.079,19.309,19.3,0.808]
[1693840647533,96.287,19.31,19.3,11.118]
[1693840647733,96.287,19.31,19.301,55.0]
[1693840648041,104.365,19.31,19.303,3.418]
[1693840648347,104.365,19.31,19.303,9.116]
[1693840648946,8.078,19.31,19.303,9.116]
[1693840650533,8.078,19.31,19.303,3.418]
[1693840651346,8.078,19.31,19.303,0.808]
[1693840651851,8.078,19.312,19.303,6.506]
[1693840652144,8.078,19.312,19.306,0.808]
[1693840652444,0.57443055,19.312,19.306,0.808]
[1693840652750,56.95,19.316,19.306,0.808]
[1693840652751,8.076,19.316,19.306,0.808]
[1693840652943,1.12390872,19.315,19.306,55.808]
[1693840653148,8.077,19.314,19.306,55.808]
[1693840653341,1.12390872,19.313,19.306,55.808]
[1693840653537,8.077,19.313,19.306,55.808]
[1693840653742,8.077,19.314,19.306,55.808]
[1693840654145,0.58481884,19.313,19.306,55.808]
[1693840654457,34.173,19.313,19.306,0.808]
[1693840654653,91.129,19.313,19.298,81.51832937]
[1693840654862,1.3319026,19.312,19.295,2.612]
[1693840655038,34.183,19.308,19.298,0.808]
[1693840655244,8.079,19.308,19.298,0.808]
[1693840656748,0.68962929,19.307,19.298,0.808]
[1693840657058,8.08,19.306,19.298,0.808]
[1693840657257,26.102,19.309,19.298,0.808]
[1693840657458,0.6582468,19.308,19.298,0.808]
[1693840657646,8.08,19.307,19.298,0.808]
[1693840658244,34.184,19.307,19.298,0.808]
[1693840658755,8.08,19.307,19.298,0.808]
[1693840661464,34.184,19.307,19.298,0.808]
[1693840661954,8.08,19.307,19.298,0.808]
[1693840663058,91.2346,19.311,19.298,0.808]
[1693840663258,0.98617564,19.31,19.298,0.808]
[1693840663558,9.06417564,19.31,19.298,0.808]
[1693840664443,8.078,19.31,19.298,0.808]
[1693840664750,0.98617564,19.309,19.298,0.808]
[1693840664950,0.98617564,19.31,19.298,0.808]
[1693840665349,8.078,19.31,19.298,0.808]
[1693840665857,91.2346,19.311,19.298,0.808]
[1693840666059,99.3126,19.311,19.298,0.808]
[1693840666952,0.68509025,19.31,19.298,0.808]
[1693840667157,8.76309025,19.31,19.298,0.808]
[1693840667352,8.078,19.31,19.298,0.808]
[1693840667558,0.71927621,19.31,19.298,0.808]
[1693840667751,0.71927621,19.31,19.298,16.63762195]
[1693840667970,8.077,19.314,19.302,9.117]
[1693840668253,2.92706536,19.313,19.306,3.418]
[1693840668453,11.00406536,19.313,19.306,3.418]
[1693840668657,8.077,19.313,19.306,3.418]
[1693840668851,2.92706536,19.312,19.306,3.418]
[1693840669756,8.078,19.312,19.306,3.418]
[1693840669964,8.078,19.312,19.306,0.808]
[1693840670264,2.92706536,19.311,19.306,0.808]
[1693840670560,2.92706536,19.309,19.306,0.808]
[1693840670764,2.92706536,19.31,19.306,0.808]
[1693840671756,11.00506536,19.31,19.306,0.808]
[1693840672065,8.078,19.31,19.306,0.808]
[1693840672564,8.078,19.311,19.306,0.808]
[1693840674659,115.02,19.32,19.305,0.808]
[1693840674960,2.79014883,19.326,19.31,57.51]
[1693840675149,2.79014883,19.328,19.315,19.412]
[1693840675346,97.6151,19.329,19.316,20.0]
[1693840675554,8.068,19.336,19.319,19.408]
[1693840675761,100.16263409,19.335,19.32,55.0]
[1693840676059,8.069,19.332,19.322,2.608]
[1693840676361,10.61753409,19.331,19.323,0.807]
[1693840676557,2.54753409,19.331,19.321,0.807]
[1693840676758,2.54753409,19.331,19.321,6.5]
[1693840676961,2.54753409,19.332,19.321,6.5]
[1693840678462,2.54753409,19.332,19.321,0.807]
[1693840678463,10.61653409,19.332,19.321,0.807]
[1693840680258,2.54753409,19.332,19.321,0.807]
[1693840680865,10.61653409,19.332,19.321,0.807]
[1693840681057,2.54753409,19.332,19.321,0.807]
[1693840681571,2.54753409,19.332,19.321,55.807]
[1693840682075,10.61653409,19.332,19.321,55.807]
[1693840682367,8.069,19.332,19.321,55.807]
[1693840682574,0.51714412,19.331,19.321,55.807]
[1693840682769,8.069,19.333,19.321,55.807]
[1693840683069,0.50962136,19.332,19.321,55.807]
[1693840683473,8.57862136,19.332,19.321,55.807]
[1693840683769,8.069,19.332,19.321,55.807]
[1693840684859,8.069,19.332,19.321,0.807]
[1693840685176,0.50365347,19.331,19.321,0.807]
[1693840685486,8.07,19.33,19.321,0.807]
[1693840687368,99.5986,19.331,19.321,0.807]
[1693840687585,107.6676,19.331,19.321,6.5]
[1693840687779,0.8570535,19.33,19.321,6.5]
[1693840688075,99.5986,19.331,19.321,16.799]
[1693840688259,99.5986,19.331,19.322,55.0]
[1693840688464,107.6686,19.331,19.324,0.807]
[1693840688679,8.07,19.331,19.324,0.807]
[1693840688977,96.2318,19.334,19.324,0.807]
[1693840689155,0.9841656,19.331,19.324,0.807]
[1693840690876,8.069,19.333,19.324,0.807]
[1693840690877,1.58671446,19.332,19.324,0.807]
[1693840691070,9.65571446,19.332,19.324,0.807]
[1693840693477,9.65571446,19.332,19.311,72.30666571]
[1693840693669,55.0,19.331,19.312,30.304]
[1693840693868,8.071,19.327,19.317,3.416]
[1693840694382,8.071,19.327,19.317,23.416]
[1693840695581,8.071,19.327,19.317,0.807]
[1693840695783,55.85495346,19.326,19.313,0.807]
[1693840695969,91.086,19.323,19.313,0.807]
[1693840696369,0.98717469,19.322,19.313,0.807]
[1693840696674,34.161,19.32,19.313,0.807]
[1693840696984,91.096,19.32,19.313,0.807]
[1693840697287,148.606,19.32,19.29,115.02]
[1693840697469,77.92706536,19.319,19.299,8.31]
[1693840697664,77.92706536,19.319,19.299,9.118]
[1693840697665,34.173,19.313,19.299,9.118]
[1693840697881,2.92706536,19.312,19.299,9.118]
[1693840698080,8.078,19.31,19.299,9.118]
[1693840698279,2.92706536,19.309,19.299,9.118]
[1693840698475,11.00606536,19.309,19.299,9.118]
[1693840698674,8.079,19.309,19.299,9.118]
[1693840699889,104.1959,19.313,19.299,19.429]
[1693840700182,0.72984226,19.312,19.299,45.13932937]
[1693840700388,2.02724049,19.317,19.303,19.424]
[1693840700592,8.076,19.315,19.307,3.417]
[1693840700881,8.076,19.315,19.304,55.0]
[1693840701079,0.98480812,19.314,19.304,2.61]
[1693840701280,0.98480812,19.314,19.306,0.808]
[1693840701486,9.06180812,19.314,19.306,0.808]
[1693840701666,0.98480812,19.314,19.306,0.808]
[1693840702067,8.077,19.314,19.306,0.808]
[1693840702490,1.77437761,19.313,19.306,0.808]
[1693840702677,8.077,19.313,19.306,0.808]
[1693840703482,8.077,19.314,19.306,0.808]
[1693840703692,0.64792385,19.313,19.306,0.808]
[1693840703987,8.077,19.314,19.306,0.808]
[1693840704688,20.0,19.319,19.306,0.808]
[1693840704873,8.076,19.317,19.306,55.808]
[1693840705074,1.86142368,19.316,19.306,55.808]
[1693840705276,8.076,19.315,19.306,55.808]
[1693840705974,20.0,19.319,19.306,55.808]
[1693840706174,1.41877979,19.318,19.306,55.808]
[1693840706592,8.076,19.317,19.306,55.808]
[1693840706887,8.076,19.315,19.306,55.808]
[1693840707484,8.076,19.316,19.306,55.808]
[1693840707698,0.65765061,19.315,19.306,55.808]
[1693840708487,8.076,19.315,19.306,55.808]
[1693840708790,56.938,19.319,19.306,55.808]
[1693840708990,8.076,19.316,19.306,55.808]
[1693840709288,1.71101096,19.315,19.306,55.808]
[1693840709488,8.074,19.32,19.307,20.71310139]
[1693840709689,8.074,19.32,19.31,9.112]
[1693840712276,8.074,19.32,19.31,3.416]
[1693840712472,1.0069521,19.319,19.306,60.697]
[1693840712676,8.076,19.316,19.31,0.807]
[1693840714996,98.937,19.319,19.31,0.807]
[1693840715187,26.09,19.318,19.31,0.807]
[1693840715589,8.075,19.318,19.31,0.807]
[1693840716887,8.074,19.32,19.31,55.807]
[1693840717088,8.073,19.322,19.31,55.807]
[1693840721697,8.073,19.322,19.31,0.807]
[1693840721905,1.28447629,19.321,19.31,0.807]
[1693840722209,8.075,19.318,19.31,0.807]
[1693840722891,8.075,19.318,19.31,55.807]
[1693840723205,199.4815207,19.34,19.31,35.297]
[1693840723411,8.07,19.329,19.311,47.72787437]
[1693840723698,8.07,19.329,19.316,9.11]
[1693840723904,8.07,19.329,19.311,139.44022937]
[1693840723905,8.07,19.329,19.32,0.807]
[1693840724203,34.139,19.332,19.32,3.415]
[1693840724501,8.07,19.33,19.32,3.415]
[1693840724897,99.3589,19.331,19.32,3.415]
[1693840725989,91.2889,19.331,19.32,3.415]
[1693840726204,91.2889,19.331,19.32,58.415]
[1693840726390,99.3589,19.331,19.32,58.415]
[1693840726590,8.07,19.331,19.32,58.415]
[1693840726994,99.3641,19.332,19.32,58.415]
[1693840727797,8.069,19.333,19.32,58.415]
[1693840728404,0.94393606,19.334,19.32,58.415]
[1693840729804,9.01193606,19.334,19.32,58.415]
[1693840730005,8.068,19.334,19.32,58.415]
[1693840730209,0.49858194,19.333,19.32,58.415]
[1693840730692,8.56758194,19.333,19.32,58.415]
[1693840733696,65.46458194,19.333,19.32,3.415]
[1693840734094,8.071,19.329,19.32,3.415]
[1693840740616,103.216,19.332,19.32,58.415]
[1693840741112,95.147,19.332,19.32,58.415]
[1693840741317,0.72812879,19.331,19.32,58.415]
[1693840741615,8.069,19.331,19.32,58.415]
[1693840742109,26.067,19.335,19.32,58.415]
[1693840742303,0.72411639,19.332,19.32,58.415]
[1693840742714,8.79311639,19.332,19.32,58.415]
[1693840742903,8.069,19.332,19.32,58.415]
[1693840744711,26.068,19.334,19.32,58.415]
[1693840744920,0.8807963,19.333,19.32,92.905]
[1693840745122,8.068,19.334,19.32,92.905]
[1693840745303,1.50044245,19.333,19.32,92.905]
[1693840746007,8.068,19.335,19.32,92.905]
[1693840746305,26.065,19.336,19.32,92.905]
[1693840746306,34.89154195,19.334,19.32,92.905]
[1693840746505,34.136,19.334,19.32,92.905]
[1693840747620,0.63136344,19.333,19.32,92.905]
[1693840747815,8.70036344,19.333,19.32,58.415]
[1693840748008,8.069,19.333,19.32,58.415]
[1693840750003,8.068,19.334,19.32,58.415]
[1693840750418,8.068,19.335,19.32,58.415]
[1693840751211,0.72988832,19.334,19.32,58.415]
[1693840751819,8.067,19.337,19.32,58.415]
[1693840752017,1.05061859,19.336,19.32,118.61532937]
[1693840752323,8.066,19.339,19.321,94.39565019]
[1693840752509,8.066,19.339,19.326,19.401]
[1693840752817,8.066,19.339,19.327,20.0]
[1693840753022,8.066,19.339,19.33,9.104]
[1693840753430,8.066,19.339,19.331,55.0]
[1693840753623,8.066,19.339,19.333,0.806]
[1693840759817,8.066,19.34,19.333,0.806]
[1693840760028,98.9186,19.344,19.333,55.806]
[1693840760430,8.064,19.345,19.333,55.806]
[1693840760820,0.69856024,19.344,19.333,55.806]
[1693840763236,8.76256024,19.344,19.333,55.806]
[1693840763534,8.064,19.344,19.333,55.806]
[1693840764622,0.71112584,19.343,19.33,2.607]
[1693840764827,0.71112584,19.343,19.329,5.69]
[1693840764828,34.126,19.34,19.331,0.806]
[1693840765324,34.126,19.34,19.327,22.607]
[1693840765537,34.126,19.34,19.329,0.807]
[1693840767335,34.126,19.34,19.328,20.0]
[1693840767640,0.9371883,19.339,19.327,0.807]
[1693840767823,34.134,19.336,19.327,0.807]
[1693840770044,34.134,19.336,19.3,241.43]
[1693840770045,34.134,19.336,19.32,63.23133326]
[1693840770337,1.10682948,19.335,19.324,0.807]
[1693840770536,34.14,19.332,19.319,5.693]
[1693840770741,34.14,19.332,19.323,0.807]
[1693840771726,8.069,19.332,19.323,0.807]
[1693840771927,8.068,19.334,19.323,0.807]
[1693840772338,82.952,19.337,19.323,0.807]
[1693840772339,0.7154353,19.336,19.323,0.807]
[1693840772532,8.068,19.335,19.323,6.499]
[1693840772833,1.00036303,19.334,19.323,6.499]
[1693840773149,8.069,19.333,19.323,6.499]
[1693840774431,8.069,19.333,19.324,55.0]
[1693840774742,8.069,19.333,19.326,0.807]
[1693840777742,8.069,19.333,19.324,55.0]
[1693840778050,8.069,19.333,19.324,55.807]
[1693840779048,8.069,19.333,19.324,55.0]
[1693840779235,8.069,19.333,19.324,0.807]
[1693840779737,8.069,19.333,19.321,2.608]
[1693840779948,0.71060351,19.332,19.322,0.807]
[1693840780243,8.07,19.329,19.322,0.807]
[1693840781750,102.923,19.335,19.322,0.807]
[1693840781751,56.894,19.335,19.322,0.807]
[1693840782047,8.069,19.332,19.322,0.807]
[1693840785746,8.069,19.332,19.318,2.608]
[1693840785947,0.99965463,19.331,19.318,0.807]
[1693840786251,91.062,19.328,19.318,0.807]
[1693840787249,20.0,19.327,19.31,22.609]
[1693840787449,194.078,19.322,19.31,0.807]
[1693840787744,34.166,19.317,19.309,0.807]